bitfinex-derivatives/quotes_BTCF0:USTF0_20241008
["timestamp","ask_amount","ask_price","bid_price","bid_amount"]
[1728414162418,0.27056,62093.0,62092.0,0.080561]
[1728414162629,0.19,62093.0,62090.0,0.0632]
[1728414162833,0.080564,62090.0,62089.0,0.080564]
[1728414163732,0.19,62093.0,62089.0,0.32870656]
[1728414163923,0.3608,62095.0,62092.0,0.09602143]
[1728414164126,0.27056,62093.0,62092.0,0.09602143]
[1728414164326,0.27056,62093.0,62092.0,0.11321227]
[1728414164327,0.27156,62093.0,62092.0,0.11321227]
[1728414164727,0.37056,62093.0,62092.0,0.19318044]
[1728414164923,0.080561,62092.0,62091.0,0.07996872]
[1728414165126,0.080564,62090.0,62089.0,0.001]
[1728414165421,0.562364,62090.0,62089.0,0.07693276]
[1728414165627,0.562364,62090.0,62089.0,0.013]
[1728414166129,0.562364,62090.0,62087.0,0.06393276]
[1728414166326,0.080574,62082.0,62081.0,0.08366872]
[1728414166527,0.080576,62081.0,62080.0,0.07996872]
[1728414166722,0.270576,62081.0,62080.0,0.07996872]
[1728414166923,0.080578,62079.0,62078.0,0.07996872]
[1728414167123,0.270578,62079.0,62078.0,0.27276958]
[1728414167325,0.270578,62079.0,62078.0,0.16039617]
[1728414167522,0.270578,62079.0,62078.0,0.07981617]
[1728414168536,0.080582,62076.0,62075.0,0.07981617]
[1728414168738,0.080582,62076.0,62072.0,0.080587]
[1728414168739,0.080583,62075.0,62074.0,0.07981617]
[1728414168929,0.080583,62075.0,62074.0,0.19205459]
[1728414169136,0.080585,62074.0,62073.0,0.07981617]
[1728414169329,0.19,62074.0,62071.0,0.07981617]
[1728414169527,0.080587,62072.0,62071.0,0.07981617]
[1728414169729,0.080589,62071.0,62070.0,0.07981617]
[1728414169931,0.270589,62071.0,62070.0,0.19203816]
[1728414170529,0.14155029,62071.0,62070.0,0.19203816]
[1728414170732,0.22213929,62071.0,62070.0,0.08059]
[1728414171333,0.22313929,62071.0,62070.0,0.08059]
[1728414171533,0.080593,62068.0,62067.0,0.00241677]
[1728414171925,0.200593,62068.0,62067.0,0.00241677]
[1728414172725,0.201593,62068.0,62067.0,0.00341677]
[1728414172932,0.122,62068.0,62067.0,0.00441677]
[1728414173127,0.122,62068.0,62059.0,0.084304]
[1728414173128,0.080603,62060.0,62059.0,0.0037]
[1728414173333,0.080603,62060.0,62046.0,0.07981617]
[1728414173334,0.5508,62060.0,62055.0,0.080609]
[1728414173540,0.270608,62056.0,62055.0,0.080609]
[1728414173735,0.19,62056.0,62051.0,0.080615]
[1728414174041,0.080613,62052.0,62051.0,0.080615]
[1728414174241,0.19,62052.0,62044.0,0.3608]
[1728414174436,0.080628,62041.0,62040.0,0.080628]
[1728414174644,0.080624,62044.0,62043.0,0.080624]
[1728414174838,0.5508,62045.0,62039.0,0.00241795]
[1728414174839,0.080629,62040.0,62039.0,0.00241795]
[1728414175038,0.270629,62040.0,62039.0,0.00241795]
[1728414175735,0.270629,62040.0,62039.0,0.08304795]
[1728414175941,0.271629,62040.0,62039.0,0.08304795]
[1728414176545,0.19,62040.0,62039.0,0.08304795]
[1728414176747,0.001,62040.0,62039.0,0.08304795]
[1728414176943,0.441423,62045.0,62039.0,0.08304795]
[1728414177149,0.441423,62045.0,62044.0,0.080624]
[1728414177744,0.080623,62045.0,62044.0,0.080624]
[1728414178445,0.081623,62045.0,62044.0,0.080624]
[1728414178950,0.001,62045.0,62044.0,0.080624]
[1728414179252,0.3608,62055.0,62052.0,0.080613]
[1728414179452,0.19,62058.0,62052.0,0.080613]
[1728414179848,0.080608,62057.0,62052.0,0.080613]
[1728414180153,0.19,62062.0,62052.0,0.270613]
[1728414180448,0.19,62055.0,62051.0,0.07960523]
[1728414180755,0.19,62055.0,62054.0,0.080611]
[1728414181245,0.270609,62055.0,62054.0,0.080611]
[1728414182049,0.270609,62055.0,62054.0,0.16021623]
[1728414182252,0.272609,62055.0,62054.0,0.27333133]
[1728414182553,0.192,62055.0,62054.0,0.1937261]
[1728414182856,0.270605,62059.0,62058.0,0.080606]
[1728414183445,0.270605,62059.0,62058.0,0.27134175]
[1728414183641,0.270605,62059.0,62058.0,0.16014827]
[1728414183847,0.270605,62059.0,62058.0,0.080606]
[1728414184250,0.270605,62059.0,62058.0,0.16014827]
[1728414184454,0.270605,62059.0,62058.0,0.080606]
[1728414184649,0.270605,62059.0,62058.0,0.082606]
[1728414184857,0.271605,62059.0,62058.0,0.082606]
[1728414185361,0.272605,62059.0,62058.0,0.084606]
[1728414187262,0.272605,62059.0,62058.0,0.004]
[1728414187757,0.392605,62059.0,62058.0,0.004]
[1728414189048,0.002,62059.0,62058.0,0.084606]
[1728414190358,0.272604,62059.0,62058.0,0.084606]
[1728414190562,0.382604,62059.0,62058.0,0.084606]
[1728414190949,0.382604,62059.0,62058.0,0.004]
[1728414192864,1.466004,62059.0,62058.0,0.004]
[1728414196663,0.866004,62059.0,62058.0,0.004]
[1728414197564,0.382604,62059.0,62058.0,0.004]
[1728414197761,0.866004,62059.0,62058.0,0.004]
[1728414197961,0.382604,62059.0,62058.0,0.004]
[1728414203566,0.302,62059.0,62047.0,0.0641]
[1728414203771,0.080621,62047.0,62046.0,0.080621]
[1728414204370,0.080621,62046.0,62045.0,0.3608]
[1728414204671,0.200621,62046.0,62045.0,0.441422]
[1728414205575,0.201621,62046.0,62045.0,0.443422]
[1728414205774,0.001,62046.0,62045.0,0.443422]
[1728414206168,0.002,62046.0,62045.0,0.443422]
[1728414208278,0.002,62046.0,62045.0,0.8881035]
[1728414208575,0.080621,62047.0,62046.0,0.080618]
[1728414208775,0.200621,62047.0,62046.0,0.41300076]
[1728414208977,0.200621,62047.0,62046.0,0.080618]
[1728414209779,0.201621,62047.0,62046.0,0.080618]
[1728414210475,0.202621,62047.0,62046.0,0.081618]
[1728414213986,0.202621,62047.0,62046.0,0.64677159]
[1728414215275,0.082621,62047.0,62046.0,0.64677159]
[1728414215587,0.082621,62047.0,62046.0,0.79178301]
[1728414215983,0.202621,62047.0,62046.0,0.64684549]
[1728414216288,0.202621,62047.0,62046.0,0.47394694]
[1728414216679,0.22801513,62056.0,62046.0,0.83675893]
[1728414216879,0.6922,62061.0,62051.0,0.3608]
[1728414217083,0.6922,62061.0,62056.0,0.080608]
[1728414217084,0.080608,62057.0,62056.0,0.080608]
[1728414217282,0.200608,62057.0,62056.0,0.47293694]
[1728414217481,0.12,62057.0,62056.0,0.47293694]
[1728414218787,0.121,62057.0,62056.0,0.47493694]
[1728414219781,0.122,62057.0,62056.0,0.47693694]
[1728414220580,0.122,62057.0,62056.0,0.47578275]
[1728414221183,0.441398,62064.0,62056.0,0.47578275]
[1728414221184,0.37284,62072.0,62056.0,2.20177221]
[1728414221383,0.0038,62070.0,62069.0,0.080591]
[1728414221682,0.080583,62076.0,62072.0,0.080587]
[1728414221984,0.080586,62074.0,62072.0,1.14925706]
[1728414222384,0.080586,62074.0,62072.0,1.00436033]
[1728414222587,0.02847138,62076.0,62072.0,1.00436033]
[1728414222782,0.080584,62075.0,62072.0,1.00436033]
[1728414222983,0.080584,62075.0,62072.0,0.83256175]
[1728414223184,0.02847138,62076.0,62072.0,0.75197475]
[1728414223484,0.19,62077.0,62072.0,0.75197475]
[1728414223485,0.007,62073.0,62072.0,0.441387]
[1728414223687,0.007,62073.0,62072.0,0.83066775]
[1728414224191,0.012,62073.0,62072.0,0.95928029]
[1728414224389,0.012,62073.0,62072.0,0.83066775]
[1728414224889,0.012,62073.0,62072.0,0.83048607]
[1728414225285,0.005,62073.0,62072.0,0.9429247]
[1728414225786,0.005,62073.0,62072.0,0.79233728]
[1728414225995,0.013,62073.0,62072.0,0.68089865]
[1728414228085,0.080586,62073.0,62072.0,0.68089865]
[1728414228288,0.380586,62073.0,62072.0,0.60031165]
[1728414228500,0.380586,62073.0,62072.0,0.47061196]
[1728414228992,0.380586,62073.0,62072.0,0.47064003]
[1728414229392,0.380586,62073.0,62072.0,0.55122703]
[1728414229695,0.380586,62073.0,62072.0,0.68092516]
[1728414230996,0.380586,62073.0,62072.0,0.442387]
[1728414233798,0.380586,62073.0,62072.0,0.3618]
[1728414234904,0.380586,62073.0,62072.0,0.442387]
[1728414236901,0.3,62073.0,62072.0,0.442387]
[1728414237402,0.380586,62073.0,62072.0,0.442387]
[1728414240001,0.3,62073.0,62072.0,0.442387]
[1728414240204,0.11,62073.0,62072.0,0.442387]
[1728414241306,0.0643,62083.0,62081.0,0.080576]
[1728414241510,0.20384141,62083.0,62082.0,0.080574]
[1728414241705,0.19,62090.0,62082.0,0.080574]
[1728414242011,0.11241671,62087.0,62086.0,0.080569]
[1728414242604,0.1418594,62087.0,62086.0,0.080569]
[1728414244301,1e-08,62087.0,62086.0,0.270569]
[1728414244508,1e-08,62087.0,62086.0,0.082569]
[1728414245411,0.00100001,62087.0,62086.0,0.095569]
[1728414245609,0.00200001,62087.0,62086.0,0.101569]
[1728414246209,0.00200001,62087.0,62086.0,0.095569]
[1728414246611,0.3276,62104.0,62096.0,0.080556]
[1728414246813,0.080547,62103.0,62102.0,0.080546]
[1728414247409,0.10898152,62103.0,62102.0,0.080546]
[1728414248605,0.11598152,62103.0,62102.0,0.081546]
[1728414249110,0.12498152,62103.0,62102.0,0.144146]
[1728414249405,0.016,62103.0,62102.0,0.144146]
[1728414249808,0.01,62103.0,62102.0,0.143146]
[1728414250308,0.090547,62103.0,62102.0,0.001]
[1728414250808,0.080548,62102.0,62101.0,0.3608]
[1728414252009,0.082548,62102.0,62101.0,0.3608]
[1728414252804,0.182548,62102.0,62101.0,0.3608]
[1728414253410,0.080563,62091.0,62090.0,0.441363]
[1728414253606,0.270563,62091.0,62090.0,0.441363]
[1728414254709,0.272563,62091.0,62090.0,0.462363]
[1728414255416,0.271563,62091.0,62090.0,0.453363]
[1728414255610,0.271563,62091.0,62090.0,0.454363]
[1728414257004,0.270563,62091.0,62090.0,0.446363]
[1728414257211,0.270563,62091.0,62090.0,0.445363]
[1728414257512,0.380563,62091.0,62090.0,0.3658]
[1728414258211,0.380563,62091.0,62090.0,0.3698]
[1728414258212,0.40913181,62091.0,62090.0,0.3698]
[1728414258513,0.40913181,62091.0,62090.0,0.3638]
[1728414258812,0.40913181,62091.0,62090.0,0.3648]
[1728414259011,0.41013181,62091.0,62090.0,0.3648]
[1728414260113,0.41013181,62091.0,62090.0,0.3618]
[1728414260602,0.41113181,62091.0,62090.0,0.3608]
[1728414261312,0.41213181,62091.0,62090.0,0.3608]
[1728414261514,0.08057,62085.0,62084.0,0.080571]
[1728414261812,0.080572,62084.0,62083.0,0.00241609]
[1728414262211,0.080572,62084.0,62083.0,0.08298909]
[1728414263616,0.180572,62084.0,62083.0,0.08298909]
[1728414264613,0.180572,62084.0,62083.0,0.08798909]
[1728414265723,0.180572,62084.0,62083.0,0.08698909]
[1728414266017,0.180572,62084.0,62083.0,0.08798909]
[1728414267614,0.180572,62084.0,62083.0,0.00741609]
[1728414267813,0.541372,62084.0,62083.0,0.005]
[1728414268114,0.080586,62074.0,62070.0,0.3646]
[1728414268320,0.270589,62071.0,62070.0,0.3608]
[1728414268819,0.080595,62066.0,62065.0,0.3608]
[1728414269021,0.270595,62066.0,62065.0,0.3608]
[1728414269717,0.080595,62066.0,62065.0,0.441396]
[1728414269918,0.080589,62071.0,62070.0,0.080587]
[1728414270224,0.080589,62071.0,62070.0,0.080588]
[1728414271317,0.081589,62071.0,62070.0,0.088588]
[1728414272611,0.081589,62071.0,62070.0,0.089588]
[1728414273518,0.080589,62071.0,62070.0,0.084588]
[1728414273814,0.080589,62071.0,62070.0,0.081588]
[1728414274007,0.080589,62071.0,62070.0,0.084588]
[1728414274211,0.080589,62071.0,62070.0,0.004]
[1728414274411,0.080589,62071.0,62070.0,0.001]
[1728414274612,0.080589,62071.0,62070.0,0.004]
[1728414274813,0.190589,62071.0,62070.0,0.004]
[1728414275431,0.080603,62060.0,62059.0,0.00241697]
[1728414275617,0.270603,62060.0,62059.0,0.00241697]
[1728414277523,0.271603,62060.0,62059.0,0.00941697]
[1728414278217,0.381603,62060.0,62059.0,0.00941697]
[1728414278425,0.382603,62060.0,62059.0,0.01941697]
[1728414279021,0.412112,62060.0,62059.0,0.01941697]
[1728414282027,0.412112,62060.0,62059.0,0.10002097]
[1728414283727,0.412112,62060.0,62059.0,0.01941697]
[1728414284123,0.302112,62060.0,62059.0,0.01941697]
[1728414284925,0.422112,62060.0,62059.0,0.01941697]
[1728414285436,0.422112,62060.0,62059.0,0.10002097]
[1728414287520,0.151509,62060.0,62059.0,0.10002097]
[1728414290631,0.031509,62060.0,62059.0,0.10002097]
[1728414292831,0.112112,62060.0,62059.0,0.10002097]
[1728414293533,0.302112,62060.0,62059.0,0.10002097]
[1728414295429,0.302112,62060.0,62059.0,0.01941697]
[1728414296133,0.302112,62060.0,62059.0,0.10002097]
[1728414296329,0.412112,62060.0,62059.0,0.01941697]
[1728414300239,0.772912,62060.0,62059.0,0.01941697]
[1728414300831,0.080615,62051.0,62050.0,0.02]
[1728414301037,0.370615,62051.0,62050.0,0.02]
[1728414302339,0.371615,62051.0,62050.0,0.033]
[1728414302832,0.181615,62051.0,62050.0,0.044]
[1728414303037,0.002,62051.0,62050.0,0.675416]
[1728414303235,0.0624,62063.0,62050.0,0.675416]
[1728414303437,0.080604,62060.0,62059.0,0.080603]
[1728414303738,0.080598,62065.0,62064.0,0.080596]
[1728414303927,0.180598,62065.0,62064.0,0.080596]
[1728414304926,0.180598,62065.0,62061.0,0.3608]
[1728414305126,0.0806,62062.0,62061.0,0.4414]
[1728414307544,0.0806,62062.0,62061.0,0.4454]
[1728414307740,0.0816,62062.0,62061.0,0.4514]
[1728414309848,0.0816,62062.0,62061.0,0.01]
[1728414310236,0.1916,62062.0,62061.0,0.01]
[1728414314347,0.3816,62062.0,62061.0,0.01]
[1728414319853,0.865,62062.0,62051.0,0.0625]
[1728414320053,0.080615,62051.0,62046.0,0.08062]
[1728414320349,0.190615,62051.0,62046.0,0.08062]
[1728414321249,0.190615,62051.0,62044.0,0.3608]
[1728414321458,0.4708,62051.0,62040.0,0.0631]
[1728414321752,0.080632,62038.0,62037.0,0.00241806]
[1728414321959,0.270632,62038.0,62037.0,0.08305106]
[1728414323548,0.271632,62038.0,62037.0,0.08805106]
[1728414323957,0.272632,62038.0,62037.0,0.08805106]
[1728414325559,0.30184135,62038.0,62037.0,0.08805106]
[1728414327160,0.30184135,62038.0,62037.0,0.00741806]
[1728414331371,0.40184135,62038.0,62037.0,0.00741806]
[1728414331567,0.080639,62032.0,62031.0,0.0631]
[1728414331769,0.080645,62028.0,62027.0,0.3608]
[1728414331971,0.370645,62028.0,62027.0,0.3608]
[1728414333575,0.370645,62028.0,62027.0,0.3688]
[1728414333873,0.371645,62028.0,62027.0,0.3688]
[1728414334072,0.372645,62028.0,62027.0,0.3688]
[1728414335376,0.102,62028.0,62027.0,0.449446]
[1728414335574,0.002,62028.0,62027.0,0.449446]
[1728414335875,0.002,62028.0,62027.0,0.511446]
[1728414339379,0.192,62028.0,62027.0,0.511446]
[1728414339678,0.272645,62028.0,62027.0,0.3688]
[1728414340080,0.392645,62028.0,62027.0,0.3688]
[1728414342177,0.392645,62028.0,62027.0,0.46515425]
[1728414342383,0.753445,62028.0,62027.0,0.21397087]
[1728414342585,0.64852413,62028.0,62027.0,0.29428528]
[1728414342881,0.59202821,62028.0,62027.0,0.29428528]
[1728414343081,0.59202821,62028.0,62027.0,0.08831441]
[1728414343679,0.59302821,62028.0,62027.0,0.08831441]
[1728414345179,0.59402821,62028.0,62027.0,0.08431441]
[1728414345382,0.59402821,62028.0,62027.0,0.004]
[1728414345684,0.202645,62028.0,62027.0,0.084646]
[1728414345886,0.201645,62028.0,62027.0,0.080646]
[1728414346184,0.202645,62028.0,62027.0,0.083646]
[1728414346576,0.202645,62028.0,62027.0,0.003]
[1728414347182,0.202645,62028.0,62027.0,0.083646]
[1728414347389,0.122,62028.0,62027.0,0.083646]
[1728414348072,0.122,62028.0,62027.0,0.32185919]
[1728414348388,0.202645,62028.0,62027.0,0.32185919]
[1728414349885,0.202645,62028.0,62027.0,0.24121319]
[1728414351089,0.202645,62028.0,62027.0,0.003]
[1728414353383,0.265145,62028.0,62027.0,0.003]
[1728414358382,0.265145,62028.0,62026.0,0.3608]
[1728414358383,0.080646,62027.0,62026.0,0.3608]
[1728414358586,0.200646,62027.0,62026.0,0.3608]
[1728414359287,0.12,62027.0,62026.0,0.75283727]
[1728414359679,0.12,62027.0,62026.0,0.88168551]
[1728414359885,0.200646,62027.0,62026.0,0.88168551]
[1728414360083,0.201646,62027.0,62026.0,0.75683727]
[1728414360378,0.201646,62027.0,62026.0,0.52488551]
[1728414360585,0.201646,62027.0,62026.0,0.39603727]
[1728414361394,0.201646,62027.0,62026.0,0.32495972]
[1728414361981,0.201646,62027.0,62026.0,0.24431272]
[1728414362189,0.202646,62027.0,62026.0,0.24431272]
[1728414363093,0.201646,62027.0,62026.0,0.24431272]
[1728414363289,0.202646,62027.0,62026.0,0.24431272]
[1728414363692,0.392646,62027.0,62026.0,0.24431272]
[1728414363994,0.70501989,62027.0,62026.0,0.39582336]
[1728414364782,0.70501989,62027.0,62026.0,0.39461563]
[1728414364994,1.70805389,62027.0,62019.0,0.11281089]
[1728414365183,1.70805389,62027.0,62020.0,0.12716732]
[1728414365184,0.48368,62026.0,62020.0,0.12716732]
[1728414365387,0.5508,62021.0,62010.0,0.00241887]
[1728414365598,0.080666,62013.0,62012.0,0.080664]
[1728414365890,0.180666,62013.0,62012.0,0.080664]
[1728414366096,0.180666,62013.0,62010.0,0.00241887]
[1728414366293,0.270667,62011.0,62007.0,0.00088]
[1728414366494,0.080672,62007.0,62006.0,0.080673]
[1728414366688,0.270672,62007.0,62006.0,0.080673]
[1728414367995,0.08067,62009.0,62002.0,0.080678]
[1728414368199,0.080671,62008.0,62007.0,0.080671]
[1728414368495,0.080667,62011.0,62010.0,0.080668]
[1728414368694,0.190667,62011.0,62010.0,0.080668]
[1728414369094,0.191667,62011.0,62010.0,0.080668]
[1728414369582,0.192667,62011.0,62010.0,0.080668]
[1728414369982,0.002,62011.0,62010.0,0.441468]
[1728414370296,0.002,62011.0,62010.0,0.631468]
[1728414370493,0.002,62011.0,62010.0,0.270668]
[1728414370798,0.002,62011.0,62010.0,0.631468]
[1728414371187,0.002,62011.0,62010.0,0.441468]
[1728414372296,0.082667,62011.0,62010.0,0.441468]
[1728414375190,0.202667,62011.0,62010.0,0.441468]
[1728414376095,0.202667,62011.0,62010.0,0.505668]
[1728414376300,0.202667,62011.0,62010.0,0.57011313]
[1728414377001,0.202667,62011.0,62010.0,0.505668]
[1728414378105,0.002,62011.0,62010.0,0.695668]
[1728414378795,0.082667,62011.0,62010.0,0.505668]
[1728414379095,0.082667,62011.0,62010.0,0.5700316]
[1728414380802,0.081667,62011.0,62010.0,0.5700316]
[1728414381106,0.082667,62011.0,62010.0,0.60943793]
[1728414381509,0.081667,62011.0,62010.0,0.60943793]
[1728414381803,0.082667,62011.0,62010.0,0.60943793]
[1728414382300,0.082667,62011.0,62010.0,0.60942062]
[1728414384208,0.082667,62011.0,62010.0,0.54526579]
[1728414384907,0.182667,62011.0,62010.0,0.441468]
[1728414385299,0.372667,62011.0,62010.0,0.3608]
[1728414385502,0.372667,62011.0,62006.0,0.08048426]
[1728414385704,0.080672,62007.0,62006.0,0.08048426]
[1728414386206,0.080672,62007.0,62006.0,0.18447603]
[1728414386403,0.080673,62006.0,62005.0,0.44216426]
[1728414386606,0.190673,62006.0,62005.0,0.3608]
[1728414386911,0.253473,62006.0,62005.0,0.3608]
[1728414387411,0.253473,62006.0,62005.0,0.44128426]
[1728414387606,0.254473,62006.0,62005.0,0.44128426]
[1728414387806,0.254473,62006.0,62005.0,0.3608]
[1728414388207,0.254473,62006.0,62005.0,0.44128426]
[1728414388405,0.255473,62006.0,62005.0,0.3608]
[1728414388604,0.616273,62006.0,62005.0,0.0644077]
[1728414388805,0.080674,62005.0,62004.0,0.0644077]
[1728414389113,0.080674,62005.0,62002.0,0.0644077]
[1728414389114,0.080677,62003.0,62002.0,0.0644077]
[1728414389315,0.080689,61997.0,61996.0,0.080685]
[1728414389514,0.12175283,61997.0,61996.0,0.080685]
[1728414389701,0.24175283,61997.0,61996.0,0.080685]
[1728414389906,0.12175283,61997.0,61996.0,0.080685]
[1728414390102,0.19,62003.0,61996.0,0.3608]
[1728414390410,0.080683,62000.0,61999.0,0.08068]
[1728414390609,0.23171872,62000.0,61999.0,0.08068]
[1728414391310,0.190683,62000.0,61999.0,0.08068]
[1728414391615,0.23187915,62000.0,61999.0,0.08068]
[1728414392505,0.23188418,62000.0,61999.0,0.08068]
[1728414392712,0.15120118,62000.0,61999.0,0.44148]
[1728414392905,0.080675,62005.0,62004.0,0.080676]
[1728414393214,0.12204419,62005.0,62004.0,0.080676]
[1728414394309,0.12304419,62005.0,62004.0,0.080676]
[1728414395608,0.23304419,62005.0,62004.0,0.080676]
[1728414395803,0.26209929,62005.0,62004.0,0.080676]
[1728414396214,0.2207301,62005.0,62004.0,0.30885108]
[1728414396408,0.2207301,62005.0,62004.0,0.10409629]
[1728414396409,0.5815301,62005.0,62004.0,0.10409629]
[1728414396808,0.2207301,62005.0,62004.0,0.10409629]
[1728414397004,0.2207301,62005.0,62004.0,0.22840999]
[1728414397914,0.2207301,62005.0,62004.0,0.10409629]
[1728414398124,0.2207301,62005.0,62004.0,0.22839704]
[1728414398617,0.2207301,62005.0,62004.0,0.1042814]
[1728414399203,0.2207301,62005.0,62004.0,0.22858491]
[1728414399404,0.2207301,62005.0,62004.0,0.1042814]
[1728414402511,0.2207301,62005.0,62004.0,0.2009159]
[1728414402716,0.2207301,62005.0,62004.0,0.1042814]
[1728414403619,0.080676,62004.0,62003.0,0.0966345]
[1728414403821,0.190676,62004.0,62003.0,0.20093371]
[1728414404319,0.11,62004.0,62000.0,0.080678]
[1728414404524,0.08068,62001.0,62000.0,0.080678]
[1728414404719,0.12,62001.0,62000.0,0.080678]
[1728414405725,0.0290551,62005.0,62004.0,0.080676]
[1728414405919,0.12,62005.0,62004.0,0.441476]
[1728414407026,0.121,62005.0,62004.0,0.441476]
[1728414409618,0.201674,62005.0,62004.0,0.441476]
[1728414410724,0.201674,62005.0,62004.0,0.080676]
[1728414411326,0.201674,62005.0,62004.0,0.18478747]
[1728414413317,0.201674,62005.0,62004.0,0.18479221]
[1728414414125,0.201674,62005.0,62004.0,0.10411621]
[1728414419438,0.080678,62002.0,62001.0,0.080679]
[1728414419638,0.42193778,62002.0,62001.0,0.080679]
[1728414421142,0.42193778,62002.0,62001.0,0.441479]
[1728414422336,0.42193778,62002.0,62001.0,0.080679]
[1728414422842,0.42293778,62002.0,62001.0,0.081679]
[1728414423436,0.23293778,62002.0,62001.0,0.081679]
[1728414424340,0.26268238,62002.0,62001.0,0.081679]
[1728414426441,0.2214226,62002.0,62001.0,0.31040187]
[1728414427336,0.2214226,62002.0,62001.0,0.67120187]
[1728414429947,0.4114226,62002.0,62001.0,0.73490637]
[1728414430830,0.2214226,62002.0,62001.0,0.73490637]
[1728414431035,0.16490496,62002.0,62001.0,0.94431063]
[1728414431238,0.08422696,62002.0,62001.0,0.81558637]
[1728414431545,0.16490496,62002.0,62001.0,0.94431063]
[1728414431753,0.16490496,62002.0,62001.0,0.81558637]
[1728414432244,0.16490496,62002.0,62001.0,0.78413556]
[1728414432633,0.05448236,62002.0,62001.0,0.78413556]
[1728414432839,0.05448236,62002.0,62001.0,0.81440447]
[1728414433035,0.00241951,62010.0,62009.0,0.080669]
[1728414433241,0.00241951,62010.0,62009.0,0.81069588]
[1728414433543,0.080668,62010.0,62009.0,0.73002688]
[1728414434442,0.080668,62010.0,62009.0,0.58713031]
[1728414434748,0.080668,62010.0,62009.0,0.54472368]
[1728414435149,0.080668,62010.0,62009.0,0.46405468]
[1728414435344,0.190668,62010.0,62009.0,0.46405468]
[1728414435541,0.615368,62010.0,62009.0,0.10325468]
[1728414435740,0.080671,62008.0,62007.0,0.08062358]
[1728414435934,0.370671,62008.0,62007.0,0.08062358]
[1728414436436,0.370671,62008.0,62007.0,0.18410237]
[1728414436638,0.370671,62008.0,62007.0,0.08062358]
[1728414436851,0.374671,62008.0,62007.0,0.08062358]
[1728414437035,0.376671,62008.0,62007.0,0.08062358]
[1728414438046,0.376671,62008.0,62007.0,0.18412151]
[1728414438247,0.376671,62008.0,62007.0,0.08062358]
[1728414439342,0.376671,62008.0,62007.0,0.10349958]
[1728414439547,0.376671,62008.0,62007.0,0.18412144]
[1728414440442,0.376671,62008.0,62007.0,0.08062186]
[1728414440638,0.080672,62007.0,62006.0,0.08062186]
[1728414440844,0.200672,62007.0,62006.0,0.18409575]
[1728414441039,0.200672,62007.0,62006.0,0.08062186]
[1728414441444,0.21119007,62007.0,62001.0,0.3608]
[1728414441646,0.080678,62002.0,62001.0,0.3608]
[1728414441850,0.12287517,62002.0,62001.0,0.3608]
[1728414442249,0.12287521,62002.0,62001.0,0.3608]
[1728414442447,0.12287521,62002.0,61994.0,0.36409935]
[1728414442448,0.16219721,62002.0,61994.0,0.00241935]
[1728414442666,0.631487,61995.0,61994.0,0.00241935]
[1728414442949,0.72217602,61995.0,61994.0,0.00241935]
[1728414443152,0.82217602,61995.0,61994.0,0.00241935]
[1728414443345,0.77368421,61995.0,61994.0,0.00241935]
[1728414444442,0.82215567,61995.0,61994.0,0.00241935]
[1728414444841,0.82315567,61995.0,61994.0,0.00441935]
[1728414445149,0.77468421,61995.0,61994.0,0.00441935]
[1728414445652,0.77568421,61995.0,61994.0,0.00441935]
[1728414447649,0.58568421,61995.0,61994.0,0.00441935]
[1728414447846,0.77568421,61995.0,61994.0,0.00441935]
[1728414448451,0.58568421,61995.0,61994.0,0.082689]
[1728414448656,0.04419721,61995.0,61994.0,0.082689]
[1728414448851,0.02883898,62002.0,62001.0,0.08068]
[1728414449046,0.081517,62004.0,62003.0,0.080677]
[1728414449356,0.12287481,62004.0,62003.0,0.080677]
[1728414449650,0.080677,62004.0,62003.0,0.30717275]
[1728414449954,0.080677,62004.0,62003.0,0.22649575]
[1728414450152,0.080677,62004.0,62003.0,0.10333016]
[1728414450153,0.160677,62004.0,62003.0,0.10333016]
[1728414450941,0.19375729,62004.0,62003.0,0.10333016]
[1728414451346,0.19575729,62004.0,62003.0,0.10333016]
[1728414451556,0.19575729,62004.0,62002.0,0.08053449]
[1728414451851,0.689877,62003.0,62002.0,0.08053449]
[1728414452151,0.689877,62003.0,61998.0,0.09663845]
[1728414452152,0.080678,62002.0,62001.0,0.08053449]
[1728414452359,0.080678,62002.0,62001.0,0.18431658]
[1728414452360,0.370678,62002.0,62001.0,0.18431658]
[1728414452659,0.370678,62002.0,62001.0,0.18429825]
[1728414453047,0.370678,62002.0,62001.0,0.08053449]
[1728414453247,0.370678,62002.0,62001.0,0.1842933]
[1728414453449,0.370678,62002.0,62001.0,0.08053449]
[1728414453650,0.08068,62001.0,62000.0,0.08053449]
[1728414453861,0.38068,62001.0,62000.0,0.18428109]
[1728414454158,0.38068,62001.0,62000.0,0.1037466]
[1728414454453,0.38068,62001.0,62000.0,0.18426137]
[1728414455053,0.001,62001.0,62000.0,0.28101851]
[1728414455356,0.10975629,62004.0,62003.0,0.080677]
[1728414455557,0.3608,62008.0,62003.0,0.22708097]
[1728414455759,0.080673,62007.0,62006.0,0.080672]
[1728414455957,0.200673,62007.0,62006.0,0.18437106]
[1728414456659,0.200673,62007.0,62000.0,0.3628]
[1728414456660,0.34814465,62007.0,62000.0,0.36273996]
[1728414456959,0.14488365,62003.0,62002.0,0.080678]
[1728414457555,0.2923553,62003.0,62002.0,0.080678]
[1728414457753,0.14747165,62003.0,62002.0,0.080678]
[1728414458058,0.15047165,62003.0,62002.0,0.080678]
[1728414458256,0.15147165,62003.0,62002.0,0.080678]
[1728414458658,0.23214865,62003.0,62002.0,0.080678]
[1728414458957,0.23214865,62003.0,62000.0,0.3608]
[1728414458958,0.08068,62001.0,62000.0,0.3608]
[1728414459163,0.22556779,62001.0,62000.0,0.3608]
[1728414459359,0.37303944,62001.0,62000.0,0.3608]
[1728414459956,0.37303944,62001.0,62000.0,0.441481]
[1728414460155,0.37303944,62001.0,62000.0,0.31230041]
[1728414460156,0.22915165,62001.0,62000.0,0.31230041]
[1728414460355,0.40580111,62001.0,62000.0,0.31230041]